Cogmind - Beta 11.1 @@@ ROGUE MODE // 2022.06.12 @ 10:00:47 Player: ChromeKnight Result: Self-destructed Performance ------------- Evolutions (1) 500 Regions Visited (3) 600 Robots Destroyed (44) 220 Value Destroyed (625) 625 Prototype IDs (1) 20 Alien Tech Used (0) 0 Bonus (319) 319 TOTAL SCORE: 2284 Bonus ------- Follower Combat Kills 319 Cogmind --------- Core Integrity 348/400 Matter 300/300 Energy 250/250 System Corruption 0% Temperature Cool (0) Movement Treading (160) Location -9/Materials Parts ------- > --- POWER (1) -------- Ion Engine > --- PROPULSION (2) --- Light Treads Light Treads > --- UTILITY (4) ------ Large Storage Unit Light Armor Plating Light Armor Plating > --- WEAPON (2) ------- Autogun Autogun > --- INVENTORY (15) --- Ion Engine Ion Engine Light Treads Flight Unit Hacking Suite Thief Drone Bay (3/3) Light EM Pulse Cannon Light EM Pulse Cannon Autogun Grenade Launcher Grenade Launcher Datajack Datajack Datajack Mining Laser Peak State ------------ > --- POWER ------------ Ion Engine > --- PROPULSION ------- Light Treads Light Treads > --- UTILITY ---------- Large Storage Unit Thief Drone Bay > --- WEAPON ----------- Autogun Grenade Launcher > --- INVENTORY -------- Ion Engine Ion Engine Flight Unit Light EM Pulse Cannon Light EM Pulse Cannon Autogun Autogun Autogun Grenade Launcher Datajack Datajack Datajack [Rating: 15] Favorites ----------- Power Ion Engine Engine Ion Engine Propulsion Light Treads Treads Light Treads Utility Large Storage Unit Device Thief Drone Bay Storage Large Storage Unit Protection Light Armor Plating Weapon Autogun Energy Gun EM Pulse Gun Energy Cannon Light EM Pulse Cannon Ballistic Gun Autogun Launcher Grenade Launcher Build | -11 -10 -10 -9 ------- Run | Scr Mat Min Mat Slots Evolved 2 | . . . 2 Power . | . . . . Propulsion . | . . . . Utility 2 | . . . 2 Weapon . | . . . . Parts Attached 27 | 7 8 4 8 Power 3 | 1 2 . . Engine 3 | 1 2 . . Core . | . . . . Reactor . | . . . . Propulsion 5 | 2 . . 3 Treads 5 | 2 . . 3 Leg . | . . . . Wheel . | . . . . Hover . | . . . . Flight . | . . . . Utility 7 | 1 1 3 2 Device 1 | . . 1 . Storage 2 | 1 1 . . Processor . | . . . . Hackware . | . . . . Protection 4 | . . 2 2 Artifact . | . . . . Weapon 12 | 3 5 1 3 Energy Gun 3 | 3 . . . Energy Cannon 3 | . 3 . . Ballistic Gun 4 | . 2 . 2 Ballistic Cannon . | . . . . Launcher 2 | . . 1 1 Special Weapon . | . . . . Impact Weapon . | . . . . Slashing Weapon . | . . . . Piercing Weapon . | . . . . Special Melee Weapon . | . . . . Unidentified Prototypes 1 | . . 1 . Parts Lost 4 | . 2 . 2 Power . | . . . . Propulsion . | . . . . Utility 1 | . . . 1 Weapon 3 | . 2 . 1 Highest Loss Streak 2 | . 2 . 1 To Critical Strikes . | . . . . Average Slot Usage (%) 89 | . 85 95 90 Engine 13 | . 14 14 11 Treads 26 | . 28 28 22 Storage 13 | . 14 14 11 Protection 9 | . . 9 24 Energy Gun 2 | . 5 . . Energy Cannon 4 | . 11 . . Ballistic Gun 15 | . 11 16 20 Launcher 3 | . . 11 1 Naked Turns . | . . . . Heaviest Build 40 | 12 31 34 40 Greatest Support 40 | 40 40 40 40 Greatest Overweight (x) . | . . . . Average Overweight (x) . | . . . . Largest Inventory Capacity 15 | 8 15 15 15 Average Capacity 14 | 6 14 15 15 Most Carried 15 | 1 13 14 15 Average Carried 11 | . 9 13 14 Final Capacity 15 | 8 15 15 15 Final Carried 15 | . 12 14 15 Class Distribution -------------------- 77% | Mutant 22% | Scavenger-Mutant Dominant Class ---------------- Mutant | -10/Materials Mutant | -10/Mines Scavenger-Mutant | -9/Materials Resources | -11 -10 -10 -9 ----------- Run | Scr Mat Min Mat Matter Collected 1045 | 221 165 312 347 Remotely . | . . . . Salvage Created 1042 | . 330 266 446 Parts 88 | . 21 24 43 Haulers Intercepted 1 | . 1 . . Recyclers Shooed 3 | . . 1 2 Parts Field Recycled . | . . . . Retrieved Matter . | . . . . Parts Self-Destructed . | . . . . Prevented . | . . . . Kills | -11 -10 -10 -9 ------- Run | Scr Mat Min Mat Combat Hostiles Destroyed 30 | . 11 10 9 Guns 19 | . 4 8 7 Cannons 5 | . 5 . . AOE 6 | . 2 2 2 Classes Destroyed 10 | . 4 2 4 Worker 4 | . . 1 3 Builder 1 | . . . 1 Tunneler 1 | . . . 1 Hauler 1 | . 1 . . Recycler 2 | . . 1 1 Operator 1 | . . . 1 Watcher 4 | . 2 . 2 Swarmer 23 | . 9 8 6 Grunt 6 | . 2 2 2 Sentry 1 | . . . 1 Best Kill Streak 7 | . 3 6 7 Combat Bots Only 5 | . 3 5 3 Max Kills in Single Turn 4 | . 2 3 4 Gunslinging . | . . . . Exploded 2 | . 1 2 2 Melee . | . . . . Uniques/NPCs Destroyed . | . . . . Combat | -11 -10 -10 -9 -------- Run | Scr Mat Min Mat Damage Taken 1046 | . 527 196 323 Core 109 | . 33 24 52 Absorbed by Shields . | . . . . Core Remaining (%) 88 | 100 . 77 . Volleys Fired 89 | . 35 20 34 Largest 2 | . 2 2 2 Hottest 112 | . 112 53 53 Shots Fired 169 | . 63 40 66 Gun 140 | . 36 39 65 Cannon 27 | . 27 . . Launcher 2 | . . 1 1 Special . | . . . . Kinetic 134 | . 30 39 65 Thermal . | . . . . Explosive 2 | . . 1 1 Electromagnetic 33 | . 33 . . Robot Hit Streak 8 | . 7 8 7 Robot Miss Streak 3 | . 2 3 2 Penetration Max . | . . . . Secondary Targets 2 | . 1 1 . Max Gunslinging Chain 1 | . 1 1 . Shots Hit Robots 107 | . 44 23 40 Core Hits 50 | . 14 15 21 Critical Kills 1 | . . 1 . Critical Parts Destroyed . | . . . . Critical Strikes 6 | . 5 1 . Destroy 1 | . . 1 . Corrupt 5 | . 5 . . Melee Attacks . | . . . . Impact . | . . . . Slashing . | . . . . Piercing . | . . . . Sneak Attacks . | . . . . Combat Hostiles . | . . . . Follow-up Attacks . | . . . . Damage Inflicted 2171 | . 957 434 780 Guns 1375 | . 369 362 644 Cannons 410 | . 410 . . Explosions 386 | . 178 72 136 Melee . | . . . . Ramming . | . . . . Kinetic 1330 | . 324 362 644 Thermal 178 | . 178 . . Explosive 208 | . . 72 136 Electromagnetic 455 | . 455 . . Impact . | . . . . Slashing . | . . . . Piercing . | . . . . Highest Corruption 1 | . 1 1 . Average Corruption 1 | . 1 1 . Corruption Purged . | . . . . Corruption Blocked . | . . . . Effects 17 | . 8 9 . Message Errors 5 | . 4 1 . Matter Fused 3 | . 1 2 . Heat Flow Errors 2 | . 2 . . Energy Discharges 2 | . . 2 . Data Loss (minor) 3 | . 1 2 . Data Loss (major) 1 | . . 1 . Alerts 1 | . . 1 . Overload Shots . | . . . . Overflow Damage 20 | . 10 . 10 Projectiles . | . . . . Explosions 20 | . 10 . 10 Melee . | . . . . Knockbacks . | . . . . Impact . | . . . . Kinetic . | . . . . Secondary . | . . . . Self-Inflicted Damage 43 | . 43 . . Shots 2 | . 2 . . Rammed . | . . . . Targets Rammed . | . . . . Kicked . | . . . . Crushed . | . . . . Highest Temperature 245 | . 245 30 67 Average Temperature 34 | . 49 8 22 Received Heat Transfer 267 | . 72 51 144 Siege Activations . | . . . . Robots Corrupted . | . . . . Combat Hostiles . | . . . . Parts Fried . | . . . . Impact Corruptions . | . . . . Robots Melted . | . . . . Combat Hostiles . | . . . . Parts Melted . | . . . . Heat Transferred 300 | . 300 . . Parts Sabotaged . | . . . . Parts Stolen . | . . . . Parts Stripped . | . . . . Power Chain Reactions 4 | . 4 . . Missiles Intercepted . | . . . . Alert | -11 -10 -10 -9 ------- Run | Scr Mat Min Mat Peak Influence 380 | . 145 364 380 Initial 36 | . . 36 26 Average 139 | . 71 171 207 Maximum Alert Level 1 | . . 1 1 Low Security (%) 71 | 100 100 63 37 Level 1 28 | . . 36 62 Level 2 . | . . . . Level 3 . | . . . . Level 4 . | . . . . Level 5 . | . . . . High Security . | . . . . Max Security . | . . . . Squads Dispatched 3 | . 2 . 1 Investigation 2 | . 2 . . Extermination . | . . . . Reinforcement 1 | . . . 1 Assault . | . . . . Garrison . | . . . . Intercept . | . . . . Searches Triggered . | . . . . Construction Impeded . | . . . . Haulers Reinforced . | . . . . Active Scanning Responses . | . . . . Cargo Convoy Interrupts . | . . . . Stealth | -11 -10 -10 -9 --------- Run | Scr Mat Min Mat Distress Signals 3 | . 1 . 2 Communications Jammed . | . . . . Distress Signals . | . . . . Times Spotted 61 | . 19 15 27 Peak Tracking Total 5 | . 4 5 4 Tactical Retreats 3 | . 2 1 . Traps | -11 -10 -10 -9 ------- Run | Scr Mat Min Mat Traps Triggered 2 | . 2 . . Indirectly . | . . . . Trap Hack Attempts . | . . . . Triggered . | . . . . Disarmed . | . . . . Reprogrammed . | . . . . Reused . | . . . . Traps Extracted . | . . . . Installed . | . . . . Triggered . | . . . . Machines | -11 -10 -10 -9 ---------- Run | Scr Mat Min Mat Machines Disabled 1 | . . . 1 Max in Single Turn 1 | . . . 1 Machines Sabotaged . | . . . . Garrisons Compromised . | . . . . Overloaded Fab Kills . | . . . . Hacking | -11 -10 -10 -9 --------- Run | Scr Mat Min Mat Machines Accessed 16 | . 7 1 8 Terminals 15 | . 7 . 8 Fabricators . | . . . . Repair Stations . | . . . . Recycling Units . | . . . . Scanalyzers . | . . . . Garrison Access . | . . . . Total Hacks 43 | . 21 1 21 Successful 27 | . 9 1 17 Failed 16 | . 12 . 4 Catastrophic 1 | . . . 1 Database Lockouts . | . . . . Manual 38 | . 19 . 19 Terminals 42 | . 21 . 21 Fabricators . | . . . . Repair Stations . | . . . . Recycling Units . | . . . . Scanalyzers . | . . . . Garrison Access . | . . . . Terminal Hacks 3 | . . 1 2 Robot Analysis 1 | . . . 1 Open Door 1 | . . 1 . Branch Access Points 1 | . . . 1 Fabricator Hacks . | . . . . Repair Station Hacks . | . . . . Recycling Unit Hacks . | . . . . Scanalyzer . | . . . . Garrison Access Hacks . | . . . . Unauthorized Hacks 24 | . 9 . 15 Terminals 24 | . 9 . 15 Track 5 | . . . 5 Assimilate 3 | . 2 . 1 Botnet 14 | . 6 . 8 Operators 2 | . 1 . 1 Fabricators . | . . . . Repair Stations . | . . . . Recycling Units . | . . . . Scanalyzers . | . . . . Garrison Access . | . . . . Data Cores Recovered 1 | . . . 1 Used . | . . . . Hacking Detections 12 | . 5 . 7 Full Trace Events 1 | . 1 . . Feedback Events . | . . . . Feedback Blocked . | . . . . Robot Schematics Acquired . | . . . . Robots Built . | . . . . Authchips . | . . . . Time . | . . . . Total Robot Build Rating . | . . . . Part Schematics Acquired . | . . . . Parts Built . | . . . . Authchips . | . . . . Time . | . . . . Total Part Build Rating . | . . . . Parts Repaired . | . . . . Time . | . . . . Parts Recycled . | . . . . Recycled Matter . | . . . . Retrieved Matter . | . . . . Retrieved Components . | . . . . Parts Scanalyzed . | . . . . Part Schematics Acquired . | . . . . Parts Damaged . | . . . . Bothacking | -11 -10 -10 -9 ------------ Run | Scr Mat Min Mat Used RIF Installer . | . . . . Robots Hacked . | . . . . Non-combat . | . . . . Combat . | . . . . Robot Hacks Applied . | . . . . Relay Couplers Released . | . . . . Fabnet Peak Effective % . | . . . . Robots Rewired . | . . . . Allies Hacked . | . . . . Hacks Repelled . | . . . . Allies | -11 -10 -10 -9 -------- Run | Scr Mat Min Mat Total Allies 5 | . 2 3 . Largest Group 4 | . 2 4 4 Highest-Rated Group 61 | . 20 61 61 Highest-Rated Ally 31 | . 10 31 31 Total Orders 5 | . 2 2 1 STAY 3 | . 1 1 1 FOLLOW 2 | . 1 1 . Ally Attacks 44 | . . 7 37 Total Damage 792 | . . 148 644 Kills 12 | . . 2 10 Allies Corrupted . | . . . . Allies Melted . | . . . . Intel | -11 -10 -10 -9 ------- Run | Scr Mat Min Mat Robot Analysis Total 1 | . . . 1 Derelict Logs Recovered 3 | . . 3 . Drone Launches . | . . . . Drone Recoveries . | . . . . Exploration | -11 -10 -10 -9 ------------- Run | Scr Mat Min Mat Turns Passed 3915 | 74 1545 1166 1130 Spaces Moved 1927 | 42 619 647 619 Core 3 | 3 . . . Treads 1924 | 39 619 647 619 Legs . | . . . . Wheels . | . . . . Hover . | . . . . Flight . | . . . . Fastest Speed 50 | 50 160 160 160 Average Speed 159 | 152 160 160 160 Slowest Speed 160 | 160 160 160 160 Overloaded Moves . | . . . . Propulsion Burnouts . | . . . . Robots Hopped . | . . . . Cave-ins Triggered . | . . . . Exploration Rate (%) 60 | 4 89 99 50 Regions Visited 3 Branch Regions 1 Pre-discovered Areas 1 | . . 1 . Known Exits Taken . | . . . . Unknown Exits Taken 3 | 1 1 1 . Scrap Searched 1 | . . 1 . Spaces Dug . | . . . . Terrain Destroyed 28 | . 12 11 5 Melee . | . . . . Projectile . | . . . . AOE 28 | . 12 11 5 Terrain Rammed . | . . . . Walls Destroyed . | . . . . Machines Disabled . | . . . . Actions | -11 -10 -10 -9 --------- Run | Scr Mat Min Mat Total 2617 | 50 1117 745 705 Wait 546 | . 435 71 40 Move 1924 | 41 618 646 619 Hop . | . . . . Pick Up 19 | 1 15 2 1 Fast Attach 14 | 6 3 3 2 Attach 5 | 1 2 . 2 Detach 1 | . . . 1 Swap 8 | . 3 1 4 Drop 11 | 1 6 2 2 Fire 89 | . 35 20 34 Melee . | . . . . Ram . | . . . . Kick . | . . . . Crush . | . . . . Escape Stasis . | . . . . Rewire . | . . . . Trap . | . . . . Miscellaneous . | . . . . Route ------- -11/Scrapyard -10/Materials (discovered 4 exits: *Mat x2 / *Min x2) -10/Mines (discovered 2 exits: *Mat x2) -9/Materials (discovered 3 exits: [*Mat] / Min x2) History --------- Turn | Location | Event 9 | -11/Scrapyard | Discovered new exit (range 16) 75 | -11/Scrapyard | Entered Materials 305 | -10/Materials | Build established: Mutant 329 | -10/Materials | Discovered new exit (range 6) 335 | -10/Materials | Discovered new exit (range 8) 545 | -10/Materials | Discovered new exit (range 7) 1229 | -10/Materials | Discovered new exit (range 3) 1620 | -10/Materials | Entered Mines 1620 | -10/Mines | Accompanied by 2 allies 1725 | -10/Mines | Learned location of Zion (-6) 1733 | -10/Mines | Discovered new exit (range 8) 2051 | -10/Mines | Learned Materials emergency access door positions 2072 | -10/Mines | Found the Drone Emporium 2080 | -10/Mines | Found Prototype Device 2080 | -10/Mines | Identified Thief Drone Bay 2148 | -10/Mines | Received a Mining Laser from a helpful Derelict 2424 | -10/Mines | Deemed a non-threat by the Exiles lab entrance 2474 | -10/Mines | Discovered new exit (range 8) 2506 | -10/Mines | Learned Materials terminal intel 2786 | -10/Mines | Entered Materials 2786 | -9/Materials | Accompanied by 4 allies 2786 | -9/Materials | Evolved 2 slots: Utility x2 2788 | -9/Materials | Loaded intel: 12 terminal locations 2791 | -9/Materials | Led the pair of lost Derelicts to an unsafe place 3345 | -9/Materials | Build established: Scavenger-Mutant 3718 | -9/Materials | Discovered new exit (range 14) 3754 | -9/Materials | Identified exit to Mines 3916 | -9/Materials | Self-destructed Last Messages --------------- 03653_ R-06 Scavenger collects Datajack. 03654_ K-01 Serf collects debris. 03690_ G-34 Mercenary destroyed. 03693_ G-47 Trooper destroyed. 03705_ Acquired 40 matter. 03718_ EXIT=FOUND 03754_ Connecting with Terminal... >>Trojan(Botnet) Trojan loaded successfully. Testing... Terminal linked with 7 systems. Awaiting botnet instructions. >>Access(Branch) Found 2 branch access points: (84,14) Mines (13,15) Mines Map updated. 03780_ Technician 1b reports 0b10 security level has risen to 1. 03820_ K-01 Serf collects debris. 03899_ K-01 Serf cleans the Fusion Modulator. Map ----- +----------------------------------------------------+ | ??????????????"T"????????????????????????????????? | | ?????????????????????????????????????????????????? | | ?????????????????????????????????????????????????? | | ?????????????????????????????????????????????????? | | ?????????????????????????????????????????????????? | | ?????????????????????????????????????????????????? | | ?????????????????????????????????????????????????? | | ?????????????????????????????????????????????????? | | ?????????????????????????????????????????????????? | | ?????????????????????????????????????????????????? | | ???????????????? ????????????????????????????????? | | ?????????????? [ ??????????????????????????????? | | ?????????????+ [%! ??????????????????????????????? | | ?????????????? *??????????????????????????????? | | ?????????????? ??????????????????????????????? | | ??????????????# #??????????????????????????????? | | ??????????????# #??????????????????????????????? | | ??????????????# #??????????????????????????????? | | ??????????????# +???????????????????????#+?????? | | ??????????????# #?????????????????????### ###### | | ??????????????# #?????????????????????# | | ?????????????## ##????????????????????# | | ????? ??????# % ########?????????????# | | ???# #### #?????????????# | | ?????? #?????????????# """ | | ?????????????# @#########??????# """ | | ?????????????# ####% %## ??????# """ | | ?????????#######+######k ## """ ""??????+ "" = | | ????????## !* ! # g ## """ """?????# ! | | ???+ + =!""" " # ## """ """ """?# [ | | ?????### # =""" T # + ###### u | | ???????# # """ " # ## #???## | | ???????# # # ###############????## | | ???????# ###############+###################### | | ???????# #?????????# + | | ######?# #?????????# """ """ # ######+# | | # !!! # #?????????#k""" """ # ## | | # !!! # ########### """ """ / ## | | # !! + *!%= / u ###### ##+##+## | | # # ########### " " #????# # # """ | | # # #?????????# "Y" #????# + """ # """ | | # ?# #?????????# """ #????# # """ # """ | | ######?# #???###################### # """ # | | ######## #???# !# """ [ ## # # ! | | #???# """ # "T" ## # !####### | | ######## #???# "T" """ # ## ######## # | | ???????# #???# """ + ## + # | | ???????# #???# """ ####+#####+######## # | | ???????# #???# #??# #???# ?????# # | | ???????# #???# #??# #???# ???###+### | +----------------------------------------------------+ Best States ------------- Heat Dissipation 28 Energy Generation 10 Energy Capacity 250 Matter Stores 300 Matter Capacity 300 Sight Range 16 Terrain Scan Density 10 Armor Coverage 450 Evasion (%) 40 Recoil Reduction 2 Item Schematics ----------------- None Robot Schematics ------------------ None Fabricated ------------ Nothing Alien Tech Used ----------------- None Achievements -------------- None Challenges ------------ None Game ------ Seed BombardmentGrapheneExtractor Manual? 0 Play Time 00:17:52 Cumulative 324.2 hours Start 2022.06.12 @ 09:39:50 End 2022.06.12 @ 10:00:47 Sessions 1 Manual Loads 0 Difficulty Rogue Special Mode None Game No. 571 Rogue 416 Adventurer 148 Explorer 7 Win Type - Total 11 Types 9/0/1/1/0/0/0/0/0 Lore% 74 Gallery% 87 Achievement% 67 Wizard Run 0 Options --------- ASCII 0 Keyboard 0 Movement Numpad Keybinds 0 Fullscreen 1 Font 18/SmallcapsGlow Map View 76x50 Tactical HUD 1 Map Filters NONE Filters NONE Steam 1 RUN: 9938a999-2599-4829-8114-88b3c1ee1cf1